[Event "FISU WUMSCC Women 2024"]
[Site "Entebbe"]
[Date "2024.06.28"]
[Round "7.8"]
[White "Bonno Thandi"]
[Black "Nampiima Esther"]
[Result "1-0"]
[ECO "B08"]
[WhiteElo "1573"]
[BlackElo "1522"]
[Annotator "NA RC"]
[PlyCount "165"]
[EventDate "2024.06.24"]
[EventType "swiss"]
[EventCountry "UGA"]
[SourceTitle "playchess.com"]
[Source "ChessBase"]
[SourceQuality "1"]
[TimeControl "5400+30"]

1. d4 {[%emt 0:00:51]} d6 {[%emt 0:00:44]} 2. Bf4 {[%emt 0:00:18]} Nf6 {[%emt 0:00:50]} 3. Nf3 {[%emt 0:00:43]} g6 {[%emt 0:01:14]} 4. Nc3 {[%emt 0:00:13]} Bg7 {[%emt 0:00:35]} 5. e4 {[%emt 0:00:33]} O-O {[%emt 0:05:46]} 6. Qd2 {[%emt 0:03:05]} Bg4 {[%emt 0:04:18]} 7. Be2 {[%emt 0:00:48]} Nbd7 {[%emt 0:01:14]} 8. Bh6 {[%emt 0:02:54]} Bxf3 {[%emt 0:02:06]} 9. Bxf3 {[%emt 0:00:08]} c6 {[%emt 0:00:13]} 10. Bxg7 {[%emt 0:00:07]} Kxg7 {[%emt 0:00:20]} 11. h4 {[%emt 0:00:14]} h5 {[%emt 0:02:08]} 12. O-O-O {[%emt 0:01:04]} Qc7 {[%emt 0:01:49]} 13. Be2 {[%emt 0:00:45]} b5 {[%emt 0:02:34]} 14. f3 {[%emt 0:01:08]} Rh8 {[%emt 0:01:24]} 15. g4 {[%emt 0:00:37]} b4 {[%emt 0:01:09]} 16. Nb1 {[%emt 0:00:39]} Rab8 {[%emt 0:01:16]} 17. gxh5 {[%emt 0:01:11]} Nxh5 {[%emt 0:00:48]} 18. f4 {[%emt 0:00:29]} Ng3 {[%emt 0:01:21]} 19. Rhg1 {[%emt 0:03:57]} Nxe2+ {[%emt 0:06:02]} 20. Qxe2 {[%emt 0:00:22]} Rxh4 {[%emt 0:00:33]} 21. f5 {[%emt 0:00:30]} Rh6 {[%emt 0:06:37]} 22. fxg6 {[%emt 0:01:54]} fxg6 {[%emt 0:05:49]} 23. Nd2 {[%emt 0:01:15]} Qa5 {[%emt 0:04:49]} 24. Kb1 {[%emt 0:00:43]} Rf8 {[%emt 0:04:56]} 25. Nf3 {[%emt 0:01:40]} Kf7 {[%emt 0:03:11]} 26. e5 {[%emt 0:03:05]} Kg7 {[%emt 0:07:31]} 27. Ng5 {[%emt 0:02:12]} Rf5 {[%emt 0:04:22]} 28. exd6 {[%emt 0:01:21]} e5 {[%emt 0:01:16]} 29. Qc4 {[%emt 0:06:02]} Qd5 {[%emt 0:05:45]} 30. Qxd5 {[%emt 0:07:04]} cxd5 {[%emt 0:01:06]} 31. dxe5 {[%emt 0:02:01]} Rxe5 {[%emt 0:01:13]} 32. Nf3 {[%emt 0:00:36]} Rf5 33. Nd4 Rf2 {[%emt 0:06:32]} 34. Rde1 {[%emt 0:01:44]} Kf8 {[%emt 0:06:53]} 35. Rgf1 {[%emt 0:02:48]} Rxf1 {[%emt 0:03:02]} 36. Rxf1+ {[%emt 0:00:07]} Kg7 {[%emt 0:00:18]} 37. Rg1 {[%emt 0:00:35]} Kf6 {[%emt 0:00:41]} 38. b3 {[%emt 0:00:25]} Ke5 {[%emt 0:00:29]} 39. Nc6+ {[%emt 0:00:42]} Kxd6 {[%emt 0:00:42]} 40. Nxb4 {[%emt 0:00:05]} Nc5 {[%emt 0:01:21]} 41. Rg5 {[%emt 0:01:10]} d4 {[%emt 0:01:06]} 42. Rd5+ {[%emt 0:00:42]} Ke6 {[%emt 0:00:50]} 43. Rxc5 {[%emt 0:00:18]} Rh5 {[%emt 0:01:25]} 44. Rxh5 {[%emt 0:01:31]} gxh5 {[%emt 0:00:04]} 45. Nd3 {[%emt 0:00:06]} h4 {[%emt 0:00:10]} 46. Nf2 {[%emt 0:00:08]} Kf5 {[%emt 0:00:03]} 47. Kc1 {[%emt 0:00:38]} Kf4 {[%emt 0:00:02]} 48. Kd1 {[%emt 0:00:28]} Kf3 {[%emt 0:00:07]} 49. Ke1 {[%emt 0:01:41]} Ke3 {[%emt 0:00:01]} 50. a4 {[%emt 0:00:30]} Kf3 51. b4 Kf4 {[%emt 0:01:55]} 52. Ke2 {[%emt 0:01:14]} Ke5 {[%emt 0:00:03]} 53. Kd3 {[%emt 0:01:29]} Kd5 {[%emt 0:00:12]} 54. Nh3 {[%emt 0:00:29]} Ke5 {[%emt 0:00:35]} 55. b5 {[%emt 0:00:39]} Kd5 {[%emt 0:00:11]} 56. c3 {[%emt 0:02:25]} dxc3 {[%emt 0:00:43]} 57. Kxc3 {[%emt 0:00:15]} Kc5 {[%emt 0:00:12]} 58. Nf4 {[%emt 0:00:08]} Kb6 {[%emt 0:00:44]} 59. Kb4 {[%emt 0:00:18]} a6 {[%emt 0:02:23]} 60. a5+ {[%emt 0:00:30]} Kb7 {[%emt 0:00:30]} 61. b6 {[%emt 0:00:30]} Kc6 62. Kc4 {[%emt 0:00:30]} Kb7 63. Kc5 {[%emt 0:08:02]} Kb8 {[%emt 0:01:44]} 64. Kc6 {[%emt 0:01:00]} Kc8 {[%emt 0:00:18]} 65. Kd6 {[%emt 0:07:15]} Kb7 {[%emt 0:00:55]} 66. Kd7 {[%emt 0:00:21]} Kb8 {[%emt 0:00:14]} 67. Ke6 {[%emt 0:02:04]} Kb7 {[%emt 0:00:03]} 68. Kf5 {[%emt 0:00:10]} Kb8 {[%emt 0:00:07]} 69. Kg4 {[%emt 0:00:10]} Kb7 {[%emt 0:07:26]} 70. Kxh4 {[%emt 0:35:54]} Kb8 {[%emt 0:00:00]} 71. Kg4 {[%emt 0:00:00]} Kb7 {[%emt 0:00:00]} 72. Kf5 {[%emt 0:00:00]} Kc6 {[%emt 0:00:00]} 73. Ke5 {[%emt 0:00:00]} Kb7 {[%emt 0:00:00]} 74. Kd6 {[%emt 0:00:00]} Kb8 {[%emt 0:00:00]} 75. Nd5 {[%emt 0:00:00]} Kb7 {[%emt 0:00:00]} 76. Nb4 {[%emt 0:00:00]} Kb8 {[%emt 0:03:30]} 77. Nxa6+ {[%emt 0:00:00]} Kb7 {[%emt 0:00:00]} 78. Nc5+ {[%emt 0:00:00]} Kc8 {[%emt 0:00:00]} 79. Nd7 {[%emt 0:00:00]} Kb7 {[%emt 0:00:00]} 80. Nc5+ {[%emt 0:00:00]} Kc8 {[%emt 0:00:00]} 81. b7+ {[%emt 0:00:00]} Kb8 {[%emt 0:00:00]} 82. Kc6 {[%emt 0:00:00]} Ka7 {[%emt 0:00:00]} 83. Nd7 {[%emt 0:00:00]} 1-0